bitfinex-derivatives/quotes_ETHF0:USTF0_20250702
["timestamp","ask_amount","ask_price","bid_price","bid_amount"]
[1751478992764,1.9508,2561.9,2561.1,1.95141]
[1751478992956,0.78046,2561.5,2561.4,7.11693014]
[1751478993161,0.78046,2561.5,2561.4,2.74757]
[1751478993656,0.78046,2561.5,2561.4,9.86450014]
[1751478994661,0.78046,2561.5,2561.4,9.08403014]
[1751478994964,0.78046,2561.5,2561.4,9.86450014]
[1751478995461,2.7776,2561.7,2561.6,0.78041]
[1751478995657,2.7776,2561.7,2561.4,9.08403014]
[1751478995658,1.9113,2561.9,2561.4,11.03520014]
[1751478995863,0.7803,2562.0,2561.9,0.78029]
[1751478996065,1.72635031,2562.0,2561.9,0.78029]
[1751478996360,0.7803,2562.0,2561.9,0.78029]
[1751478997062,2.6263,2562.3,2562.2,0.78023]
[1751478997258,1.8461,2562.3,2562.2,7.89716014]
[1751478997458,11.618,2562.4,2562.0,7.11693014]
[1751478997661,0.78023,2562.2,2562.1,0.78024]
[1751478997863,2.69332,2562.3,2562.2,0.78023]
[1751478999075,1.9131,2562.3,2562.2,0.78023]
[1751478999278,2.75219,2562.4,2562.3,0.7802]
[1751478999568,2.75219,2562.4,2562.3,7.11693014]
[1751479000472,2.75219,2562.4,2562.3,7.89713014]
[1751479000673,2.75219,2562.4,2562.3,7.11693014]
[1751479002767,0.78019,2562.4,2562.3,7.11693014]
[1751479003676,0.78019,2562.4,2562.3,7.89713014]
[1751479003873,0.78019,2562.4,2562.3,7.11693014]
[1751479006880,1.95044,2562.4,2562.1,7.11693014]
[1751479007184,0.78023,2562.2,2562.1,7.11693014]
[1751479007881,0.78023,2562.2,2562.1,7.89719014]
[1751479008581,0.78023,2562.2,2562.1,7.11693014]
[1751479009082,2.60463,2562.3,2562.2,0.78023]
[1751479009277,0.78023,2562.3,2562.2,0.78023]
[1751479009872,0.7802,2562.4,2562.3,0.78017]
[1751479010271,1.912,2562.8,2562.2,1.95057]
[1751479010477,1.912,2562.8,2562.7,7.89700014]
[1751479010478,2.69204,2562.8,2562.7,7.89700014]
[1751479010672,2.198,2563.5,2562.7,7.89700014]
[1751479010673,0.7799,2563.3,2562.9,1.95003]
[1751479010877,3.6146,2563.6,2563.2,7.11693014]
[1751479011178,1.71186927,2563.5,2563.4,0.77985]
[1751479011374,0.77989,2563.4,2563.3,0.77987]
[1751479011882,0.77995,2563.1,2563.0,1.6743]
[1751479012480,1.711,2563.3,2563.0,1.6743]
[1751479012681,0.77994,2563.2,2563.1,0.77995]
[1751479013483,0.7799,2563.3,2563.2,0.77989]
[1751479013884,0.77995,2563.2,2563.1,0.77994]
[1751479014186,0.77995,2563.1,2563.0,9.57119014]
[1751479014380,0.77995,2563.1,2563.0,1.6743]
[1751479014584,0.77994,2563.2,2563.0,1.6743]
[1751479014984,0.77994,2563.2,2563.0,2.45426]
[1751479015386,0.77995,2563.1,2563.0,1.6743]
[1751479015584,2.48725,2563.1,2563.0,1.6743]
[1751479016386,2.48725,2563.1,2563.0,2.45428]
[1751479016586,2.48725,2563.1,2563.0,1.6743]
[1751479017488,2.48725,2563.1,2563.0,2.45428]
[1751479017683,2.48725,2563.1,2563.0,1.6743]
[1751479017883,44.0783,2563.1,2562.1,9.44315563]
[1751479018087,3.2753,2563.0,2562.4,7.11693014]
[1751479018389,0.7801,2562.7,2562.6,7.11693014]
[1751479018784,0.78007,2562.8,2562.6,7.11693014]
[1751479018984,0.78007,2562.8,2562.7,0.78006]
[1751479019187,0.78007,2562.7,2562.6,7.11693014]
[1751479019388,0.7801,2562.6,2562.5,1.7079]
[1751479019786,0.78013,2562.5,2562.4,0.78016]
[1751479019986,0.78019,2562.4,2562.3,0.78018]
[1751479021285,1.6097,2562.4,2562.3,0.78018]
[1751479021485,2.38987,2562.4,2562.3,0.78018]
[1751479022482,2.45326,2562.5,2562.4,0.78017]
[1751479022683,1.6731,2562.5,2562.2,8.82483014]
[1751479022989,0.7802,2562.4,2562.3,0.78017]
[1751479023689,1.6731,2562.5,2562.2,8.82483014]
[1751479023690,0.7802,2562.3,2562.2,9.60506014]
[1751479023886,0.7802,2562.3,2562.2,1.7079]
[1751479024187,5.7802,2562.3,2561.7,10.74578014]
[1751479024393,4.13253,2562.2,2562.1,0.78023]
[1751479024989,1.673,2562.2,2562.1,0.78023]
[1751479025299,0.7802,2562.4,2562.3,0.78016]
[1751479025593,0.78025,2562.2,2562.1,0.78022]
[1751479025794,0.78022,2562.3,2562.2,0.7802]
[1751479025996,0.78017,2562.5,2562.4,0.78015]
[1751479026190,2.45317,2562.5,2562.4,0.78015]
[1751479026391,0.78017,2562.4,2562.3,7.89711014]
[1751479026591,2.45317,2562.4,2562.3,7.89711014]
[1751479027297,2.45317,2562.4,2562.3,7.89713014]
[1751479027593,2.45317,2562.4,2562.3,0.7802]
[1751479029193,1.673,2562.4,2562.3,0.7802]
[1751479029390,2.45317,2562.4,2562.3,0.7802]
[1751479029591,1.673,2562.4,2562.3,0.7802]
[1751479029792,2.45317,2562.4,2562.3,0.7802]
[1751479030595,1.673,2562.4,2562.3,0.7802]
[1751479031595,0.78023,2562.3,2562.2,0.78021]
[1751479031796,1.673,2562.4,2562.3,0.7802]
[1751479031997,1.673,2562.4,2562.3,7.89713014]
[1751479032594,2.45317,2562.4,2562.3,7.89713014]
[1751479033791,1.673,2562.4,2561.9,4.27701549]
[1751479033995,0.78025,2562.2,2562.1,0.78023]
[1751479034894,2.45317,2562.4,2562.3,0.7802]
[1751479035396,0.78022,2562.3,2562.2,0.7802]
[1751479035597,2.37632,2562.3,2562.2,0.7802]
[1751479035798,1.5961,2562.3,2562.2,0.7802]
[1751479035998,2.3763,2562.3,2562.2,0.7802]
[1751479036196,1.95057,2562.2,2561.8,2.32622549]
[1751479036402,0.78041,2561.7,2561.6,0.7804]
[1751479036602,1.95074,2562.0,2561.4,3.87142549]
[1751479036603,0.78037,2561.8,2561.7,0.78036]
[1751479037104,1.4831,2561.9,2561.4,3.49637]
[1751479037105,1.4831,2561.9,2561.8,0.78035]
[1751479038697,2.26342,2561.9,2561.8,0.78035]
[1751479039899,0.78038,2561.7,2561.6,7.11693014]
[1751479040203,0.78038,2561.7,2561.6,7.89734014]
[1751479040598,2.26344,2561.9,2561.8,0.78035]
[1751479041103,0.78037,2561.8,2561.7,0.78035]
[1751479041297,1.6098,2561.8,2561.7,0.78035]
[1751479042907,2.39015,2561.8,2561.7,0.78035]
[1751479044504,1.6098,2561.8,2561.7,0.78035]
[1751479045806,1.6098,2561.8,2561.7,4.19211391]
[1751479046403,10.02156391,2561.8,2559.1,16.25533677]
[1751479046701,0.78056,2561.1,2561.0,1.72840166]
[1751479046900,0.78056,2561.1,2560.3,3.41176391]
[1751479046901,1.95151,2561.0,2560.5,3.41176391]
[1751479047097,0.78068,2560.8,2560.7,3.41176391]
[1751479047305,0.78071,2560.6,2560.5,3.41176391]
[1751479047502,37.293,2560.7,2560.3,1.6553]
[1751479047706,0.78077,2560.4,2560.3,1.6553]
[1751479047903,0.78077,2560.4,2560.3,8.76062968]
[1751479048103,0.78077,2560.4,2560.3,1.6553]
[1751479048299,0.78063,2560.9,2560.3,10.71263968]
[1751479048509,41.19696539,2561.1,2560.6,7.10532968]
[1751479048702,1.76521509,2561.0,2560.8,0.78065]
[1751479048902,37.69096539,2561.1,2560.7,2.29277]
[1751479048903,1.76523509,2560.9,2560.7,2.29277]
[1751479049105,0.7806,2561.0,2560.9,0.78062]
[1751479049408,1.76431343,2561.0,2560.8,0.78063]
[1751479049707,0.78059,2561.0,2560.8,0.78063]
[1751479049908,0.9837077,2560.9,2560.8,0.78063]
[1751479050303,0.9837077,2560.9,2560.8,2.27753]
[1751479050504,0.78055,2561.2,2561.0,0.78059]
[1751479051208,0.78056,2561.1,2561.0,0.78059]
[1751479052403,3.0839,2561.5,2560.5,1.95183]
[1751479052610,0.78069,2560.7,2560.1,12.09765968]
[1751479052908,37.29,2560.7,2560.1,1.5757]
[1751479053109,0.7808,2560.4,2560.2,0.78084]
[1751479053407,0.7808,2560.4,2560.3,0.7808]
[1751479053607,0.7808,2560.4,2560.2,0.78082]
[1751479053807,0.78074,2560.5,2560.3,0.7808]
[1751479054008,0.78077,2560.4,2560.3,0.7808]
[1751479054407,1.4991,2560.5,2560.1,1.5757]
[1751479054600,0.78078,2560.4,2560.3,0.78079]
[1751479054801,0.78067,2560.8,2560.7,0.78068]
[1751479055004,0.78067,2560.8,2560.2,7.10532968]
[1751479055005,0.78069,2560.7,2560.6,0.78069]
[1751479055200,0.78064,2560.9,2560.8,0.78064]
[1751479055407,0.78061,2561.0,2560.9,0.78061]
[1751479055605,0.78061,2561.0,2560.6,1.4737]
[1751479055606,0.78064,2560.9,2560.8,0.78063]
[1751479055808,0.78068,2560.7,2560.6,1.4737]
[1751479056907,0.78068,2560.7,2560.6,2.25441]
[1751479057107,1.509,2561.1,2560.6,1.4737]
[1751479057308,1.509,2561.1,2560.8,0.78064]
[1751479057309,0.78064,2560.9,2560.8,0.78064]
[1751479058014,1.95118,2561.4,2561.1,0.78055]
[1751479058214,0.78059,2561.1,2561.0,0.78058]
[1751479058613,38.8672,2561.4,2560.8,9.05694968]
[1751479058809,0.7805,2561.4,2561.3,0.7805]
[1751479059015,0.99830823,2561.4,2561.3,0.7805]
[1751479059215,11.561,2561.7,2561.5,0.78041]
[1751479059410,12.3414,2561.7,2561.3,1.95124]
[1751479059611,12.3414,2561.7,2561.6,0.78041]
[1751479060717,13.34072306,2561.7,2561.6,0.78041]
[1751479061119,0.78044,2561.6,2561.5,0.78042]
[1751479064226,12.3414,2561.7,2561.6,0.78041]
[1751479065531,0.78044,2561.5,2561.4,2.37144]
[1751479065827,0.78043,2561.6,2561.5,0.78041]
[1751479066729,0.7804,2561.7,2561.6,0.78038]
[1751479067225,0.78038,2561.8,2561.7,0.78035]
[1751479067730,0.78043,2561.7,2561.6,0.78039]
[1751479068330,0.78044,2561.6,2561.5,0.78042]
[1751479070926,0.78039,2561.7,2561.6,0.78038]
[1751479071127,38.04437,2561.8,2561.7,0.78038]
[1751479071432,38.04437,2561.8,2561.5,9.05642968]
[1751479071433,0.78023,2562.3,2562.2,0.78021]
[1751479071634,38.03423,2562.3,2562.2,0.78021]
[1751479071834,0.78023,2562.3,2562.2,0.78021]
[1751479072831,0.78026,2562.2,2562.1,0.78024]
[1751479073328,0.78026,2562.1,2562.0,1.4291]
[1751479073534,2.07086,2562.1,2562.0,1.4291]
[1751479073735,0.78026,2562.1,2562.0,2.20939]
[1751479073931,39.1995,2562.3,2561.9,0.78029]
[1751479074131,39.1995,2562.3,2561.7,3.31315]
[1751479074132,0.78025,2562.2,2562.1,0.78023]
[1751479074338,38.02722,2562.3,2562.2,0.78023]
[1751479075038,0.78029,2562.1,2562.0,0.78026]
[1751479075234,0.78032,2561.9,2561.8,1.4469]
[1751479075840,2.13112,2561.9,2561.8,1.4469]
[1751479077732,37.241,2562.3,2561.8,1.4469]
[1751479077933,1.95007,2562.9,2562.2,7.10532968]
[1751479078142,0.78012,2562.6,2562.5,0.78011]
[1751479078542,0.78016,2562.5,2562.4,0.78015]
[1751479079337,1.3508,2562.6,2562.3,0.78017]
[1751479079338,0.78019,2562.4,2562.3,0.78017]
[1751479080642,0.78015,2562.5,2562.4,0.78014]
[1751479080946,0.78013,2562.5,2562.4,0.78014]
[1751479081932,0.78013,2562.5,2562.2,7.10532968]
[1751479082137,0.7802,2562.4,2562.3,0.78018]
[1751479083543,46.84,2563.1,2562.3,1.9505]
[1751479083740,2.30690544,2563.6,2563.1,1.94989]
[1751479083941,2.30690544,2564.4,2563.5,1.94958]
[1751479084137,0.77966,2564.1,2563.8,7.88505968]
[1751479084546,1.77895166,2564.3,2563.7,1.94941]
[1751479084744,1.77895166,2564.3,2563.6,7.10532968]
[1751479084944,1.77895166,2564.3,2564.2,0.77962]
[1751479085145,1.3871,2564.3,2564.2,0.77962]
[1751479085345,1.3871,2564.3,2563.9,7.10532968]
[1751479085548,38.519,2564.5,2564.0,1.3793]
[1751479085743,0.77964,2564.2,2564.0,1.3793]
[1751479086148,0.77965,2564.1,2564.0,1.3793]
[1751479086846,1.9492,2564.0,2563.5,19.42014968]
[1751479087051,0.77982,2563.6,2563.5,19.42014968]
[1751479087349,1.3126,2564.0,2563.6,0.7798]
[1751479087549,0.77975,2563.8,2563.7,0.77977]
[1751479088044,0.77979,2563.7,2563.6,0.77978]
[1751479088649,0.77975,2563.8,2563.7,0.77975]
[1751479088950,1.3126,2564.0,2563.5,7.10532968]
[1751479089251,0.77977,2563.8,2563.7,0.77975]
[1751479089449,0.77979,2563.7,2563.6,0.77978]
[1751479090450,0.77976,2563.8,2563.7,0.77975]
[1751479090945,1.94898,2564.3,2563.7,0.77975]
[1751479091151,0.38815419,2565.2,2564.0,7.10532968]
[1751479091446,0.38815419,2565.2,2563.6,8.51612968]
[1751479091447,9.85292968,2565.2,2564.1,14.3419]
[1751479091647,0.77962,2564.2,2564.1,2.8079]
[1751479092046,1.94877,2564.6,2564.3,0.77954]
[1751479092047,0.77958,2564.4,2564.3,0.77954]
[1751479092246,2.754,2564.6,2564.1,4.75701]
[1751479092447,0.77956,2564.5,2564.4,0.77953]
[1751479094551,0.77958,2564.4,2564.3,0.77956]
[1751479095348,2.10235,2564.5,2564.4,0.77956]
[1751479096655,15.37700968,2564.5,2563.3,7.10532968]
[1751479096957,0.77966,2564.1,2564.0,0.77966]
[1751479097554,0.77964,2564.2,2564.1,0.77962]
[1751479097856,1.94898,2564.3,2563.8,1.3171]
[1751479098156,0.77971,2564.0,2563.9,0.77969]
[1751479099254,0.77966,2564.1,2564.0,0.77965]
[1751479100347,0.7797,2564.0,2563.9,0.77969]
[1751479100851,0.77977,2563.8,2563.7,0.77975]
[1751479101456,0.77979,2563.7,2563.6,0.77978]
[1751479103551,0.77955,2564.5,2563.8,1.94935]
[1751479103757,2.7684,2565.0,2564.4,7.10532968]
[1751479104059,0.77943,2564.9,2564.5,1.3593]
[1751479104249,1.3769,2564.9,2564.8,0.77943]
[1751479104449,0.77933,2565.2,2565.0,0.77937]
[1751479104655,1.3769,2565.1,2565.0,0.77937]
[1751479104860,0.77933,2565.2,2565.1,0.77934]
[1751479105056,0.7793,2565.3,2565.2,0.77931]
[1751479105357,2.7658,2565.4,2564.8,1.94859]
[1751479105358,3.54507,2565.4,2564.8,1.94859]
[1751479105560,0.77928,2565.3,2565.1,0.77932]
[1751479105760,0.77931,2565.2,2565.1,0.77932]
[1751479106557,0.77931,2565.2,2564.8,8.38992968]
[1751479106759,0.77934,2565.1,2565.0,0.77936]
[1751479107360,1.3769,2565.3,2564.8,8.38992968]
[1751479107561,1.3769,2565.3,2565.1,0.77934]
[1751479107562,0.77933,2565.2,2565.1,0.77934]
[1751479107965,0.77935,2565.1,2565.0,0.77936]
[1751479108258,0.77935,2565.1,2564.8,8.38992968]
[1751479108464,0.77935,2565.1,2564.9,0.77938]
[1751479109163,0.7794,2564.9,2564.8,7.10532968]
[1751479109365,0.7794,2564.9,2564.8,7.88474968]
[1751479109561,0.77943,2564.8,2564.7,0.77946]
[1751479109765,0.77947,2564.7,2564.6,2.08329]
[1751479110066,0.77947,2564.7,2564.6,1.3038]
[1751479110967,0.77947,2564.7,2564.6,2.0833]
[1751479111363,0.77947,2564.7,2564.6,1.3038]
[1751479111767,0.7795,2564.6,2564.5,1.3593]
[1751479113568,0.7795,2564.6,2564.5,2.13883]
[1751479115472,2.12189,2564.7,2564.6,0.7795]
[1751479115966,1.94835,2565.2,2564.5,3.30811]
[1751479116167,0.77945,2564.8,2564.7,0.77944]
[1751479116870,0.77949,2564.7,2564.6,0.77947]
[1751479119172,0.77946,2564.8,2564.7,0.77943]
[1751479119371,1.77094747,2564.8,2564.7,0.77943]
[1751479119572,0.77943,2564.8,2564.7,0.77943]
[1751479120364,0.99176352,2564.8,2564.6,1.3004]
[1751479120569,0.77944,2564.8,2564.7,0.77943]
[1751479121070,1.77111648,2564.8,2564.7,0.77943]
[1751479121270,0.77943,2564.9,2564.8,0.77943]
[1751479121471,1.770999,2564.9,2564.8,0.77943]
[1751479121971,0.77946,2564.8,2564.7,0.77945]
[1751479122271,0.99136304,2564.8,2564.7,0.77945]
[1751479122464,0.77943,2564.9,2564.8,0.77943]
[1751479122777,1.77080057,2564.9,2564.8,0.77943]
[1751479124774,0.99137057,2564.9,2564.8,0.77943]
[1751479125073,1.77077057,2564.9,2564.8,0.77943]
[1751479126274,0.99137057,2564.9,2564.8,0.77943]
[1751479126773,3.08007057,2564.9,2564.8,0.77943]
[1751479127370,4.24924057,2564.9,2564.5,1.3593]
[1751479127568,1.77084057,2564.8,2564.7,0.77944]
[1751479127772,3.09424057,2564.8,2564.7,0.77944]
[1751479128175,0.77944,2564.8,2564.7,0.77944]
[1751479128475,0.77943,2564.9,2564.8,0.7794]
[1751479128777,1.77070957,2564.9,2564.8,0.7794]
[1751479129276,0.77947,2564.8,2564.7,0.77944]
[1751479129671,1.3234,2565.0,2564.6,9.05402968]
[1751479129871,2.1028,2565.0,2564.9,0.7794]
[1751479130171,3.09438644,2565.0,2564.9,0.7794]
[1751479130371,0.77944,2564.9,2564.8,0.77941]
[1751479130674,0.99158644,2564.9,2564.8,0.77941]
[1751479130875,2.11553,2565.2,2564.8,1.9486]
[1751479131075,2.11553,2565.2,2565.0,0.77937]
[1751479131076,0.99197585,2565.1,2565.0,0.77937]
[1751479131471,1.77131585,2565.1,2565.0,0.77937]
[1751479131669,0.77941,2565.0,2564.9,0.77939]
[1751479131866,1.77138585,2565.0,2564.9,0.77939]
[1751479132173,0.99197585,2565.0,2564.9,0.77939]
[1751479132474,1.77226651,2565.1,2565.0,0.77937]
[1751479133380,0.77943,2564.9,2564.8,0.77941]
[1751479133974,1.77234651,2564.9,2564.8,0.77941]
[1751479134175,0.99291651,2564.9,2564.8,0.77941]
[1751479134769,1.77231651,2564.9,2564.8,0.77941]
[1751479135576,0.99291651,2564.9,2564.8,0.77941]
[1751479137472,1.77340653,2565.0,2564.9,0.7794]
[1751479137676,0.99402742,2565.0,2564.9,0.7794]
[1751479137876,1.77339742,2565.0,2564.9,0.7794]
[1751479141072,0.77947,2564.8,2564.7,0.77945]
[1751479141273,1.77349742,2564.8,2564.7,0.77945]
[1751479141479,3.05529742,2564.8,2564.7,0.77945]
[1751479141677,0.99402742,2564.8,2564.7,0.77945]
[1751479141880,0.77936,2565.1,2565.0,0.77937]
[1751479142075,1.77385956,2565.1,2565.0,0.77937]
[1751479143279,1.77383956,2565.1,2565.0,0.77937]
[1751479143679,0.99449956,2565.1,2565.0,0.77937]
[1751479143981,1.77383956,2565.1,2565.0,0.77937]
[1751479144483,0.7794,2565.0,2564.9,0.77938]
[1751479144781,0.99449956,2565.0,2564.9,0.77938]
[1751479145277,1.77386956,2565.0,2564.9,0.77938]
[1751479145477,0.99449956,2565.0,2564.9,0.77938]
[1751479146778,1.77386956,2565.0,2564.9,0.77938]
[1751479146985,0.99449956,2565.0,2564.9,0.77938]
[1751479147680,1.77386956,2565.0,2564.9,0.77938]
[1751479148482,0.99449956,2565.0,2564.9,0.77938]
[1751479150392,1.77386956,2565.0,2564.9,0.77938]
[1751479150883,0.7794,2564.9,2564.8,0.78529697]
[1751479151089,1.77389956,2564.9,2564.8,0.78529697]
[1751479151890,0.99449956,2564.9,2564.8,0.78529697]
[1751479155592,0.00585697,2565.3,2564.9,1.94848]
[1751479155787,0.00585697,2565.3,2565.2,0.77931]
[1751479155989,0.00585697,2565.3,2565.2,2.09961]
[1751479159292,0.78513697,2565.3,2565.2,2.09961]
[1751479160087,0.00585697,2565.3,2565.2,2.09961]
[1751479161490,0.00585697,2565.3,2565.2,3.40461]
[1751479162893,0.00585697,2565.3,2565.2,2.09961]
[1751479164891,0.00585697,2565.3,2565.2,0.77931]
[1751479167095,0.00585697,2565.3,2565.2,2.17571]
[1751479173800,1.352,2565.9,2565.8,0.77913]
[1751479173994,3.11604202,2565.9,2565.8,0.77913]
[1751479174394,0.77918,2565.8,2565.7,0.77914]
[1751479174602,3.07332202,2565.8,2565.7,0.77914]
[1751479174797,0.7792,2565.7,2565.6,0.77917]
[1751479175004,2.0884,2565.7,2565.6,0.77917]
[1751479175406,1.3092,2565.7,2565.6,0.77917]
[1751479175704,2.08836,2565.7,2565.6,0.77917]
[1751479178007,1.3092,2565.7,2565.6,0.77917]
[1751479178206,2.08836,2565.7,2565.6,0.77917]
[1751479179306,1.3092,2565.7,2565.6,0.77917]
[1751479179503,1.352,2565.9,2565.7,0.77913]
[1751479179707,2.13112,2565.9,2565.8,0.77913]
[1751479181004,1.352,2565.9,2565.8,0.77913]
[1751479181611,3.5373,2565.9,2565.8,0.77913]
[1751479182105,4.51762101,2565.9,2565.8,0.77913]
[1751479182508,3.73852101,2565.9,2565.8,0.77913]
[1751479182806,2.7582,2565.9,2565.8,0.77913]
[1751479183112,4.51742647,2565.9,2565.8,0.77913]
[1751479183513,3.73832647,2565.9,2565.8,0.77913]
[1751479183711,4.51742647,2565.9,2565.8,0.77913]
[1751479183911,3.73832647,2565.9,2565.8,0.77913]
[1751479184310,2.33212647,2565.9,2565.8,0.77913]
[1751479184513,1.352,2565.9,2565.8,0.77913]
[1751479185113,0.77913,2565.8,2565.7,0.77916]
[1751479185312,1.352,2565.8,2565.7,0.77916]
[1751479186211,2.13113,2565.8,2565.7,0.77916]
[1751479186807,9.75334656,2565.8,2565.3,1.3037]
[1751479187017,0.77925,2565.5,2565.4,0.77924]
[1751479187313,0.77928,2565.4,2565.3,0.77928]
[1751479187513,4.39037463,2565.4,2565.3,0.77928]
[1751479187814,3.61109463,2565.4,2565.3,0.77928]
[1751479188515,4.39034463,2565.4,2565.3,0.77928]
[1751479188712,3.61109463,2565.4,2565.3,0.77928]
[1751479189217,2.25909463,2565.4,2565.3,0.77928]
[1751479189515,1.3781,2565.7,2565.6,0.77919]
[1751479189716,2.35908303,2565.7,2565.6,0.77919]
[1751479190313,3.13824303,2565.7,2565.6,0.77919]
[1751479190515,2.35908303,2565.7,2565.6,0.77919]
[1751479190714,3.13824303,2565.7,2565.6,0.77919]
[1751479191316,2.35908303,2565.7,2565.6,0.77919]
[1751479191516,2.35908303,2565.7,2565.6,4.18053656]
[1751479191817,0.98098303,2565.7,2565.6,4.18053656]
[1751479192518,5.67407182,2566.4,2566.2,0.77901]
[1751479192710,3.66988757,2566.3,2566.2,0.77901]
[1751479193210,8.66988757,2566.3,2566.2,0.77901]
[1751479194319,3.66988757,2566.3,2566.2,4.18035656]
[1751479194514,0.98178757,2566.3,2566.2,4.18035656]
[1751479196416,2.5782,2566.6,2566.5,0.77892]
[1751479196618,3.55925087,2566.6,2566.5,0.77892]
[1751479197212,0.98105087,2566.6,2566.5,4.18026656]
[1751479197421,2.30690544,2567.2,2567.1,0.77874]
[1751479197921,2.30690544,2567.3,2567.2,0.77871]
[1751479198123,2.30690544,2567.5,2567.4,0.77865]
[1751479198317,1.2821,2567.6,2567.5,0.77862]
[1751479198719,0.77854,2567.8,2567.7,0.77855]
[1751479198921,2.06064,2567.8,2567.7,0.77855]
[1751479199115,1.2821,2567.8,2567.7,0.77855]
[1751479199517,1.2821,2567.8,2567.1,1.94682]
[1751479199714,4.68344656,2567.8,2567.4,0.77862]
[1751479199918,0.77862,2567.5,2567.4,0.77862]
[1751479200118,1.2821,2567.8,2567.0,20.47330439]
[1751479200419,1.2821,2567.8,2567.6,7.06641439]
[1751479200624,1.3797,2567.9,2567.8,0.77852]
[1751479200920,0.06778677,2568.2,2567.7,1.9464]
[1751479201120,2.30690544,2568.5,2568.1,7.06641439]
[1751479201324,2.30690544,2568.5,2568.4,0.77833]
[1751479201819,3.07879171,2568.9,2568.8,0.77822]
[1751479202215,2.07865,2569.4,2568.5,1.2891]
[1751479202216,0.77822,2568.8,2568.5,1.2891]
[1751479202418,5.04809171,2569.1,2568.2,11.458]
[1751479202717,5.04809171,2569.1,2568.1,1.3677]
[1751479202718,1.9693,2569.1,2568.6,0.77826]
[1751479202913,0.77818,2569.0,2568.3,7.06641439]
[1751479203114,0.77819,2569.0,2568.3,7.06641439]
[1751479203315,1.3006,2568.9,2568.8,0.77822]
[1751479203917,1.36205839,2569.2,2569.0,0.77815]
[1751479203918,2.14016839,2569.2,2569.0,0.77815]
[1751479204127,0.77813,2569.1,2568.9,0.77817]
[1751479204330,1.32,2569.1,2568.9,0.77817]
[1751479204620,0.77816,2569.0,2568.6,0.77826]
[1751479205021,0.77821,2568.9,2568.5,0.77829]
[1751479205326,1.32,2568.9,2568.4,1.2891]
[1751479205525,1.32,2568.9,2568.8,0.77822]
[1751479206019,0.77815,2569.1,2568.9,0.77818]
[1751479206219,0.77815,2569.1,2568.6,7.06641439]
[1751479206220,0.38148538,2569.3,2568.6,7.06641439]
[1751479206420,0.77818,2569.0,2568.8,0.77821]
[1751479206620,1.94511,2569.4,2568.8,0.77821]
[1751479206820,0.77818,2569.0,2568.8,0.77822]
[1751479207020,1.3735,2569.3,2568.9,0.77819]
[1751479207217,1.3735,2569.3,2568.7,0.77824]
[1751479207416,7.06641439,2568.9,2568.0,53.82825938]
[1751479207622,0.77843,2568.1,2568.0,0.00584499]
[1751479210423,0.77837,2568.3,2568.0,0.00584499]
[1751479210728,1.94555,2568.9,2568.3,0.77836]
[1751479211027,1.3788,2568.9,2568.4,7.06641439]
[1751479211227,0.77827,2568.7,2568.5,0.77829]
[1751479211423,0.77824,2568.8,2568.4,7.06641439]
[1751479211627,1.3788,2568.9,2568.8,0.77822]
[1751479211829,11.426,2569.0,2568.8,0.77822]
[1751479212029,2.6799,2569.2,2568.4,7.06641439]
[1751479212030,0.7782,2568.9,2568.7,0.77822]
[1751479212229,4.0587,2569.2,2568.7,7.06641439]
[1751479212431,0.77821,2568.9,2568.7,7.06641439]
[1751479212624,0.77821,2568.9,2568.8,0.77822]
[1751479212821,4.0587,2569.2,2568.7,7.06641439]
[1751479213027,0.77815,2569.1,2569.0,0.77814]
[1751479213224,11.49375252,2569.5,2569.0,7.06641439]
[1751479213421,11.426,2569.5,2569.3,7.06641439]
[1751479213631,1.3981,2569.8,2569.4,0.77803]
[1751479213832,0.77797,2569.7,2569.5,0.77801]
[1751479214026,0.77798,2569.6,2569.3,7.06641439]
[1751479214326,1.94493,2569.7,2569.3,0.00584499]
[1751479214529,0.77804,2569.4,2569.3,0.00584499]
[1751479215027,2.711,2569.8,2569.3,0.00584499]
[1751479215330,1.94476,2569.9,2569.4,7.06641439]
[1751479215631,0.77801,2569.5,2569.4,7.06641439]
[1751479215831,0.77804,2569.4,2569.3,0.78389499]
[1751479216034,1.3154,2569.8,2569.4,0.77803]
[1751479216231,1.94372,2571.3,2569.5,46.719]
[1751479216424,1.94398,2570.9,2569.9,7.06641439]
[1751479216627,1.3154,2570.8,2570.0,2.7523]
[1751479216828,0.77769,2570.6,2570.3,0.77776]
[1751479217128,1.3154,2570.8,2570.2,7.06641439]
[1751479217330,3.34183,2571.3,2570.5,7.06641439]
[1751479217522,0.77779,2570.3,2570.0,1.3942]
[1751479217723,0.77776,2570.4,2570.1,0.77782]
[1751479217931,0.77776,2570.4,2570.0,1.3942]
[1751479218132,0.77776,2570.4,2570.2,0.7778]
[1751479218533,3.25957,2570.7,2570.0,0.00584499]
[1751479218830,0.7778,2570.2,2570.0,0.00584499]
[1751479219027,0.77783,2570.1,2570.0,0.00584499]
[1751479219833,0.77782,2570.2,2570.0,0.00584499]
[1751479220035,0.77783,2570.1,2570.0,0.00584499]
[1751479220232,2.19163,2570.1,2570.0,0.00584499]
[1751479220640,1.4138,2570.1,2570.0,0.00584499]
[1751479220841,0.77782,2570.2,2570.0,7.07225938]
[1751479221036,0.77779,2570.3,2570.1,0.77782]
[1751479221432,0.7778,2570.2,2570.1,0.77783]
[1751479221639,2.7436,2570.6,2570.0,7.07225938]
[1751479221842,0.77778,2570.3,2570.0,7.07225938]
[1751479222042,0.77778,2570.3,2570.2,0.7778]
[1751479222242,1.9439,2571.0,2570.0,12.07225938]
[1751479222438,0.77769,2570.6,2570.5,7.06641439]
[1751479223141,1.94382,2571.1,2570.1,2.8103]
[1751479223340,1.94382,2571.1,2570.5,7.84409439]
[1751479223541,0.77766,2570.7,2570.5,7.84409439]